bitfinex/quotes_BTCUSD_20240611
["timestamp","ask_amount","ask_price","bid_price","bid_amount"]
[1718100940646,0.5,67172.0,67162.0,0.17760689]
[1718100940874,0.5,67172.0,67162.0,0.03328696]
[1718100940875,0.002,67163.0,67162.0,0.03328696]
[1718100941546,0.001,67163.0,67162.0,0.03328696]
[1718100941771,0.001,67163.0,67162.0,0.17760689]
[1718100942363,0.5,67172.0,67165.0,0.01714088]
[1718100942586,0.5,67172.0,67166.0,0.16208062]
[1718100942772,0.501,67172.0,67166.0,0.16208062]
[1718100943072,0.01710062,67171.0,67166.0,0.16208062]
[1718100943338,0.01710062,67171.0,67166.0,0.1792215]
[1718100943688,0.01710062,67171.0,67166.0,0.16208062]
[1718100943903,0.01710062,67171.0,67167.0,0.01953676]
[1718100944119,0.01710062,67171.0,67168.0,0.14431993]
[1718100944754,0.01810062,67171.0,67168.0,0.16146081]
[1718100944972,0.01810062,67171.0,67168.0,0.14431993]
[1718100945619,0.01810062,67171.0,67168.0,0.16146081]
[1718100945832,0.01810062,67171.0,67169.0,0.01809976]
[1718100946938,0.01710062,67171.0,67169.0,0.01809976]
[1718100947656,0.01710062,67171.0,67147.0,0.01714088]
[1718100947657,0.148901,67159.0,67147.0,0.01714088]
[1718100947847,0.148901,67159.0,67142.0,0.51250088]
[1718100947848,0.5,67154.0,67142.0,0.51250088]
[1718100948056,0.7175,67154.0,67143.0,0.14431993]
[1718100948270,0.7175,67154.0,67144.0,0.09502799]
[1718100948494,0.148923,67149.0,67144.0,0.09502799]
[1718100950753,0.148923,67149.0,67144.0,0.11316887]
[1718100951593,0.150923,67149.0,67144.0,0.11316887]
[1718100951798,0.00730411,67148.0,67145.0,0.10634488]
[1718100952934,0.00730411,67148.0,67147.0,0.001]
[1718100953359,0.01030411,67148.0,67147.0,0.001]
[1718100954010,0.00730411,67148.0,67147.0,0.001]
[1718100954213,0.00730411,67148.0,67147.0,0.07741657]
[1718100954731,0.01030411,67148.0,67147.0,0.07741657]
[1718100954951,0.01630411,67148.0,67147.0,0.07741657]
[1718100955980,0.01630411,67148.0,67147.0,0.09455745]
[1718100957028,0.01630411,67148.0,67147.0,0.07741657]
[1718100958884,0.01630411,67148.0,67147.0,0.09455745]
[1718100960805,0.01630411,67148.0,67147.0,0.23887738]
[1718100961864,0.02577725,67148.0,67147.0,0.23887738]
[1718100962088,0.02577725,67148.0,67147.0,0.2217365]
[1718100962318,0.02577725,67148.0,67147.0,0.001]
[1718100962550,0.009,67148.0,67147.0,0.001]
[1718100962762,0.01630855,67148.0,67147.0,0.001]
[1718100963230,0.01630855,67148.0,67147.0,0.01814088]
[1718100963433,0.01030855,67148.0,67147.0,0.16246081]
[1718100963638,0.00730855,67148.0,67147.0,0.17879289]
[1718100963845,0.5,67154.0,67150.0,0.00724248]
[1718100964053,0.5,67154.0,67151.0,0.14431993]
[1718100964500,0.00730411,67153.0,67151.0,0.14431993]
[1718100964707,0.00712494,67153.0,67152.0,0.01787929]
[1718100965330,0.00712494,67153.0,67152.0,0.03502017]
[1718100965742,0.00712494,67153.0,67152.0,0.01787929]
[1718100966151,0.00712494,67153.0,67152.0,0.03502017]
[1718100967124,0.01912494,67153.0,67152.0,0.03502017]
[1718100967741,0.02812494,67153.0,67152.0,0.6771401]
[1718100969031,0.02812494,67153.0,67152.0,0.1803401]
[1718100969496,0.021,67153.0,67152.0,1.0082401]
[1718100969883,0.021,67153.0,67152.0,0.9982401]
[1718100970149,0.012,67153.0,67152.0,0.9972401]
[1718100970354,0.4718,67165.0,67162.0,0.01714088]
[1718100970559,0.04988258,67166.0,67162.0,0.16146081]
[1718100970780,0.01677031,67164.0,67163.0,0.01614608]
[1718100970983,0.059568,67167.0,67165.0,0.01714088]
[1718100971185,0.059568,67167.0,67164.0,0.01714088]
[1718100971612,0.059568,67167.0,67165.0,0.01714088]
[1718100971816,0.059568,67167.0,67164.0,0.01714088]
[1718100972013,0.059568,67167.0,67165.0,0.01786069]
[1718100972452,0.5,67168.0,67165.0,0.03500157]
[1718100972858,0.559567,67168.0,67165.0,0.03500157]
[1718100973066,0.0072777,67167.0,67165.0,0.01786069]
[1718100973240,0.0212777,67167.0,67166.0,0.61886081]
[1718100973474,0.0212777,67167.0,67166.0,0.71344296]
[1718100974083,0.0352777,67167.0,67166.0,0.71344296]
[1718100974230,0.014,67167.0,67166.0,0.71344296]
[1718100974431,0.014,67168.0,67166.0,0.71344296]
[1718100974632,0.009,67167.0,67166.0,0.61986081]
[1718100974894,0.559561,67175.0,67168.0,0.01714088]
[1718100975103,0.5,67166.0,67161.0,0.4608]
[1718100975315,0.5,67166.0,67162.0,0.14431993]
[1718100975522,0.2175,67165.0,67156.0,0.01714088]
[1718100975698,0.22476216,67165.0,67157.0,0.22481402]
[1718100976158,0.148897,67161.0,67157.0,0.22481402]
[1718100976570,0.01707189,67160.0,67157.0,0.22481402]
[1718100977596,0.01707189,67160.0,67157.0,0.22581402]
[1718100977749,0.01707189,67160.0,67158.0,0.01714088]
[1718100977957,0.03007189,67160.0,67159.0,0.04143637]
[1718100978398,0.04007189,67160.0,67159.0,0.04143637]
[1718100979184,0.02707189,67160.0,67159.0,0.04143637]
[1718100979656,0.03107189,67160.0,67159.0,0.04143637]
[1718100979861,0.04307189,67160.0,67159.0,0.04143637]
[1718100980029,0.02907189,67160.0,67159.0,0.04143637]
[1718100980237,0.01707189,67160.0,67159.0,0.1857563]
[1718100980436,0.03107189,67160.0,67159.0,1.1385563]
[1718100980636,0.04407189,67160.0,67159.0,1.1395563]
[1718100980834,0.027,67160.0,67159.0,1.1495563]
[1718100981081,0.027,67160.0,67159.0,1.1395563]
[1718100981292,0.027,67160.0,67159.0,1.1495563]
[1718100981293,0.02786,67160.0,67159.0,1.1495563]
[1718100981498,0.01486,67160.0,67159.0,1.1485563]
[1718100982204,0.01486,67160.0,67159.0,1.2485563]
[1718100982424,0.00086,67160.0,67159.0,1.2485563]
[1718100982770,0.00886,67160.0,67159.0,1.2485563]
[1718100982976,0.00886,67160.0,67159.0,1.39023711]
[1718100983531,0.00086,67160.0,67159.0,2.30553711]
[1718100983744,0.00086,67160.0,67159.0,2.30753711]
[1718100983745,0.00186,67160.0,67159.0,2.30753711]
[1718100984138,0.00086,67171.0,67170.0,0.94991588]
[1718100984341,0.00086,67171.0,67170.0,1.46200065]
[1718100984899,0.00086,67171.0,67170.0,1.75975165]
[1718100985110,0.00086,67171.0,67170.0,2.05975165]
[1718100985322,0.00186,67171.0,67170.0,2.06975165]
[1718100986566,0.00286,67171.0,67170.0,2.07275165]
[1718100986766,0.00186,67171.0,67170.0,2.06275165]
[1718100986998,0.00186,67171.0,67170.0,1.87275165]
[1718100987149,0.00286,67171.0,67170.0,1.87275165]
[1718100987382,0.00186,67171.0,67170.0,1.85975165]
[1718100987605,0.00386,67171.0,67170.0,1.87375165]
[1718100988010,0.04931557,67184.0,67183.0,0.17598788]
[1718100988214,0.04931557,67184.0,67183.0,1.18510781]
[1718100988447,0.009416,67190.0,67189.0,0.17597388]
[1718100988665,0.009416,67190.0,67189.0,0.32029381]
[1718100988855,0.009416,67190.0,67189.0,0.31029381]
[1718100989059,0.009416,67190.0,67189.0,0.34232319]
[1718100989486,0.009416,67190.0,67189.0,1.21712319]
[1718100990532,0.017416,67190.0,67189.0,1.21712319]
[1718100990876,0.009416,67190.0,67189.0,1.21712319]
[1718100991081,0.009416,67190.0,67189.0,0.34232319]
[1718100991293,0.02274889,67190.0,67189.0,0.34232319]
[1718100991505,0.02274889,67190.0,67189.0,0.34932319]
[1718100991952,0.02274889,67190.0,67189.0,0.34232319]
[1718100992157,0.02274889,67190.0,67189.0,1.13622319]
[1718100992372,0.01693123,67190.0,67189.0,1.13622319]
[1718100992578,0.01693123,67190.0,67189.0,1.13922319]
[1718100992826,0.01693123,67190.0,67189.0,1.12522319]
[1718100993252,0.02193123,67190.0,67189.0,1.12522319]
[1718100993470,0.02193123,67190.0,67189.0,1.13522319]
[1718100993663,0.01693123,67190.0,67189.0,1.12522319]
[1718100993875,0.01693123,67190.0,67189.0,0.19749019]
[1718100994084,0.01893123,67190.0,67189.0,0.004]
[1718100994305,0.02277273,67190.0,67189.0,0.004]
[1718100994539,0.17160373,67190.0,67189.0,0.004]
[1718100994749,0.67090373,67190.0,67189.0,0.01]
[1718100994963,0.5,67181.0,67174.0,0.01714088]
[1718100995174,0.5,67181.0,67176.0,0.01714088]
[1718100995412,0.0073732,67180.0,67176.0,0.01714088]
[1718100996049,0.0073732,67180.0,67179.0,0.01714088]
[1718100996251,0.0073732,67180.0,67177.0,0.14431993]
[1718100996463,0.0073732,67180.0,67178.0,0.01614608]
[1718100996682,0.0073732,67180.0,67179.0,0.01714088]
[1718100996906,0.0073732,67180.0,67179.0,0.14431993]
[1718100997131,0.06688661,67190.0,67189.0,0.01714088]
[1718100997567,0.01693123,67190.0,67189.0,0.16146081]
[1718100997773,0.01693123,67190.0,67189.0,0.17760689]
[1718100998720,0.02293123,67190.0,67189.0,0.17860689]
[1718100999133,0.01693123,67190.0,67189.0,0.17760689]
[1718100999357,0.01693123,67190.0,67189.0,0.33643989]
[1718100999565,0.01693123,67190.0,67189.0,1.22923989]
[1718100999974,0.02693123,67190.0,67189.0,1.22923989]
[1718101000414,0.01693123,67190.0,67189.0,1.22923989]
[1718101000585,0.01793123,67190.0,67189.0,1.22923989]
[1718101000815,0.01693123,67190.0,67189.0,1.22923989]
[1718101001212,0.01793123,67190.0,67189.0,1.23723989]
[1718101001433,0.02693123,67190.0,67189.0,1.23723989]
[1718101001646,0.02693123,67190.0,67189.0,0.28560689]
[1718101001856,0.02693123,67190.0,67189.0,0.18560689]
[1718101002059,0.01793123,67190.0,67189.0,0.18560689]
[1718101002266,0.04965798,67203.0,67201.0,3.68478912]
[1718101002476,0.04965798,67203.0,67202.0,0.14431993]
[1718101002681,0.198457,67205.0,67202.0,0.14431993]
[1718101002890,0.004413,67203.0,67202.0,0.14431993]
[1718101003100,0.049658,67205.0,67202.0,0.14431993]
[1718101003339,0.648779,67214.0,67203.0,0.16146081]
[1718101003549,0.648779,67214.0,67204.0,0.16146081]
[1718101003756,0.059531,67207.0,67204.0,0.16146081]
[1718101003962,0.059531,67207.0,67206.0,0.01714088]
[1718101004169,0.648779,67214.0,67208.0,0.01714088]
[1718101004170,0.5,67214.0,67208.0,0.01714088]
[1718101004378,0.05953,67213.0,67208.0,0.01714088]
[1718101004591,0.05953,67213.0,67207.0,0.01714088]
[1718101005219,0.2156,67207.0,67206.0,0.001]
[1718101005630,0.2156,67207.0,67202.0,0.14531993]
[1718101005631,0.2056,67207.0,67202.0,0.14531993]
[1718101005847,0.2056,67207.0,67202.0,0.14431993]
[1718101006262,0.2056,67207.0,67186.0,0.01]
[1718101006263,0.5,67202.0,67189.0,0.01714088]
[1718101006683,0.51012425,67202.0,67192.0,0.01714088]
[1718101006888,0.51012425,67202.0,67189.0,0.01714088]
[1718101007089,0.51012425,67202.0,67192.0,0.01714088]
[1718101007502,0.51012425,67202.0,67179.0,0.1]
[1718101007503,0.65892925,67202.0,67186.0,0.01714088]
[1718101007712,0.65892925,67202.0,67183.0,0.148845]
[1718101007713,0.71972425,67202.0,67188.0,0.01714088]
[1718101007930,0.71972425,67202.0,67189.0,0.01714088]
[1718101008136,0.71972425,67202.0,67192.0,0.01714088]
[1718101008339,0.71972425,67202.0,67201.0,3.71687496]
[1718101008548,0.71572425,67202.0,67201.0,3.71687496]
[1718101008763,0.01012425,67202.0,67201.0,3.71787496]
[1718101008966,0.021,67202.0,67201.0,3.71887496]
[1718101009382,0.014,67202.0,67201.0,3.71787496]
[1718101010021,0.014,67202.0,67201.0,3.87933577]
[1718101010236,0.1409,67209.0,67208.0,0.01714088]
[1718101010451,0.67030045,67216.0,67208.0,0.01714088]
[1718101010662,0.01006469,67209.0,67208.0,0.05028497]
[1718101010866,0.1409,67215.0,67208.0,0.05028497]
[1718101011071,0.01006469,67209.0,67208.0,0.05028497]
[1718101011279,0.1409,67215.0,67208.0,0.05028497]
[1718101011493,0.01006469,67209.0,67208.0,0.05028497]
[1718101011694,0.1409,67215.0,67212.0,0.01684588]
[1718101011906,0.01006469,67212.0,67208.0,0.05098997]
[1718101012146,0.012,67209.0,67208.0,0.05098997]
[1718101012364,0.012,67209.0,67208.0,0.03414409]
[1718101012598,0.02206469,67209.0,67208.0,0.05098997]
[1718101013939,0.02206469,67209.0,67208.0,0.3431009]
[1718101013940,0.01006469,67209.0,67208.0,0.3431009]
[1718101014207,0.531323,67216.0,67215.0,0.01655088]
[1718101014424,0.059523,67216.0,67215.0,0.01655088]
[1718101014635,0.06962721,67216.0,67215.0,0.01655088]
[1718101015073,0.01010421,67216.0,67213.0,0.01655088]
[1718101015302,0.01010421,67216.0,67208.0,0.17746402]
[1718101015303,0.01010421,67216.0,67211.0,0.01655088]
[1718101015531,0.01010421,67216.0,67215.0,0.01655088]
[1718101015744,0.01010421,67216.0,67212.0,0.03595237]
[1718101016579,0.02410421,67216.0,67212.0,0.03595237]
[1718101017434,0.02410421,67216.0,67212.0,0.01940149]
[1718101017840,0.03810421,67216.0,67212.0,0.01940149]
[1718101018001,0.03810421,67216.0,67213.0,0.02134164]
[1718101018203,0.03810421,67216.0,67214.0,0.14431993]
[1718101018407,0.03810421,67216.0,67215.0,0.32855088]
[1718101018608,0.03810421,67216.0,67215.0,0.47287081]
[1718101018806,0.028,67216.0,67215.0,0.47287081]
[1718101019009,0.014,67216.0,67215.0,0.55285118]
[1718101019209,0.014,67216.0,67208.0,0.03314409]
[1718101019210,0.289679,67214.0,67208.0,0.03314409]
[1718101019408,0.289679,67214.0,67201.0,4.46018912]
[1718101019409,0.289679,67214.0,67207.0,0.01655088]
[1718101019684,0.00860435,67213.0,67208.0,0.01655088]
[1718101019884,0.289679,67214.0,67204.0,0.01655088]
[1718101020012,0.00861392,67212.0,67205.0,0.14431993]
[1718101020222,0.5,67212.0,67201.0,3.68478912]
[1718101020423,0.2175,67210.0,67202.0,0.14431993]
[1718101020837,0.2175,67210.0,67206.0,0.01655088]
[1718101021202,0.5,67212.0,67201.0,3.68478912]
[1718101021406,0.32683357,67216.0,67201.0,3.68478912]
[1718101021407,0.2175,67204.0,67201.0,3.68478912]
[1718101021816,0.21416693,67203.0,67201.0,3.68478912]
[1718101022028,0.00856693,67203.0,67201.0,3.68478912]
[1718101022178,0.00856693,67203.0,67201.0,3.82910905]
[1718101022384,0.2,67203.0,67201.0,3.68478912]
[1718101022590,0.2056,67202.0,67201.0,3.68478912]
[1718101022796,0.36296907,67202.0,67201.0,3.68478912]
[1718101023953,0.21416407,67202.0,67201.0,3.68478912]
[1718101024333,0.00856407,67202.0,67201.0,3.82910905]
[1718101024536,0.03256407,67202.0,67201.0,3.68478912]
[1718101027394,0.07691612,67202.0,67201.0,3.68478912]
[1718101028074,0.18136907,67202.0,67201.0,3.68478912]
[1718101028749,1.85132568,67202.0,67201.0,3.68478912]
[1718101028951,1.88486184,67202.0,67201.0,3.68478912]
[1718101029141,2.09307772,67202.0,67201.0,3.68478912]
[1718101029397,2.28603794,67202.0,67201.0,3.68126598]
[1718101029604,2.2361073,67202.0,67201.0,3.68126598]
[1718101030031,2.2121073,67202.0,67201.0,3.68126598]
[1718101030245,2.01689142,67202.0,67201.0,3.68126598]
[1718101030456,2.03089142,67202.0,67201.0,3.68126598]
[1718101030674,2.01689142,67202.0,67201.0,3.68126598]
[1718101030882,2.00389142,67202.0,67201.0,3.68126598]
[1718101031090,2.03189142,67202.0,67201.0,3.68126598]
[1718101031512,2.09832846,67202.0,67201.0,3.68126598]
[1718101031941,2.24264839,67202.0,67201.0,3.68126598]
[1718101032153,2.24264713,67202.0,67201.0,3.68126598]
[1718101033902,1.7983272,67202.0,67201.0,3.68126598]
[1718101034120,1.98423731,67202.0,67201.0,3.68126598]
[1718101034335,2.20173731,67202.0,67201.0,3.68126598]
[1718101035237,1.97313731,67202.0,67201.0,3.68126598]
[1718101035476,1.60683231,67202.0,67201.0,3.68126598]
[1718101035948,1.38677916,67202.0,67201.0,3.68126598]
[1718101036206,1.30957016,67202.0,67201.0,3.68126598]
[1718101036450,0.95417696,67202.0,67201.0,3.82558591]
[1718101036682,0.95804374,67202.0,67201.0,3.82558591]
[1718101036917,1.03857453,67202.0,67201.0,3.82558591]
[1718101037126,1.05257453,67202.0,67201.0,3.82558591]
[1718101037512,1.02886744,67202.0,67201.0,3.82558591]
[1718101037893,1.04286744,67202.0,67201.0,3.82558591]
[1718101038106,1.02499926,67202.0,67201.0,3.82558591]
[1718101038333,0.95846847,67202.0,67201.0,3.82558591]
[1718101038736,1.00280358,67202.0,67201.0,3.82558591]
[1718101038969,1.00280358,67202.0,67201.0,3.68126598]
[1718101038970,0.95846847,67202.0,67201.0,3.68126598]
[1718101039172,1.17380426,67202.0,67201.0,3.68126598]
[1718101039376,1.10727347,67202.0,67201.0,3.68126598]
[1718101039789,1.17375679,67202.0,67201.0,3.68126598]
[1718101041479,1.58140505,67202.0,67201.0,3.68126598]
[1718101041678,2.01000505,67202.0,67201.0,3.68126598]
[1718101041902,2.11879582,67202.0,67201.0,3.68126598]
[1718101042127,1.81000505,67202.0,67201.0,3.68126598]
[1718101042333,2.11882122,67202.0,67201.0,3.68126598]
[1718101042766,2.30482122,67202.0,67201.0,3.68126598]
[1718101042956,2.29082122,67202.0,67201.0,3.68126598]
[1718101043144,2.31882122,67202.0,67201.0,3.68126598]
[1718101043339,2.32996073,67202.0,67201.0,3.68126598]
[1718101043560,2.31596073,67202.0,67201.0,3.68126598]
[1718101043750,2.30196073,67202.0,67201.0,3.68126598]
[1718101043953,2.32996073,67202.0,67201.0,3.68126598]
[1718101044156,2.41596073,67202.0,67201.0,3.68126598]
[1718101044371,2.68200024,67202.0,67201.0,3.68126598]
[1718101044592,2.54914115,67202.0,67201.0,3.68126598]
[1718101044804,2.56315193,67202.0,67201.0,3.68126598]
[1718101045215,2.69597435,67202.0,67201.0,3.68126598]
[1718101045776,2.56446588,67202.0,67201.0,3.68126598]
[1718101046664,2.35304204,67202.0,67201.0,3.68126598]
[1718101046864,2.3531252,67202.0,67201.0,3.68126598]
[1718101047082,2.26160527,67202.0,67201.0,3.68126598]
[1718101047277,2.12870918,67202.0,67201.0,3.68126598]
[1718101047735,2.12583635,67202.0,67201.0,3.68126598]
[1718101047937,2.11183635,67202.0,67201.0,3.68126598]
[1718101048180,2.13983635,67202.0,67201.0,3.68126598]
[1718101048372,2.12870918,67202.0,67201.0,3.68126598]
[1718101048513,2.12735705,67202.0,67201.0,3.68126598]
[1718101048940,1.98645705,67202.0,67201.0,3.68126598]
[1718101049549,1.65661245,67202.0,67201.0,3.68126598]
[1718101049755,1.9864524,67202.0,67201.0,3.68126598]
[1718101050065,1.9354524,67202.0,67201.0,3.82558591]
[1718101050273,2.0519952,67202.0,67201.0,3.82558591]
[1718101050474,1.63361245,67202.0,67201.0,3.82558591]
[1718101051495,1.96342191,67202.0,67201.0,3.82558591]
[1718101051701,1.96342191,67202.0,67201.0,3.68126598]
[1718101052915,1.63361245,67202.0,67201.0,3.68126598]
[1718101053122,1.61961245,67202.0,67201.0,3.68126598]
[1718101053323,1.60561245,67202.0,67201.0,3.68126598]
[1718101053547,1.61161245,67202.0,67201.0,3.68126598]
[1718101053748,1.46680745,67202.0,67201.0,3.82558591]
[1718101053979,1.24930745,67202.0,67201.0,3.82558591]
[1718101054160,1.25330745,67202.0,67201.0,3.82558591]
[1718101054369,0.9444805,67202.0,67201.0,3.82558591]
[1718101054585,1.00273585,67202.0,67201.0,3.82558591]
[1718101054942,0.97473585,67202.0,67201.0,3.82558591]
[1718101055781,0.77473585,67202.0,67201.0,3.84213679]
[1718101055983,0.77473585,67202.0,67201.0,3.82558591]
[1718101056206,0.7304805,67202.0,67201.0,3.82558591]
[1718101056404,0.7574805,67202.0,67201.0,3.82558591]
[1718101056787,0.7574805,67202.0,67201.0,3.84213679]
[1718101056987,0.7574805,67202.0,67201.0,3.69781686]
[1718101057311,0.7574805,67202.0,67201.0,3.68126598]
[1718101057893,0.7574805,67202.0,67201.0,3.69781686]
[1718101059120,0.2574805,67202.0,67201.0,3.69781686]
[1718101059346,0.2574805,67202.0,67201.0,4.47361686]
[1718101059347,0.027,67202.0,67201.0,4.47361686]
[1718101059557,0.027,67202.0,67201.0,4.61793679]
[1718101061052,0.027,67202.0,67201.0,4.47361686]
[1718101061659,0.027,67202.0,67201.0,4.45706598]
[1718101061879,0.027,67202.0,67201.0,3.68126598]
[1718101061880,0.7445,67202.0,67201.0,3.68126598]
[1718101062095,0.893305,67202.0,67201.0,3.68126598]
[1718101062307,1.11052863,67202.0,67201.0,3.68126598]
[1718101062516,1.11331927,67202.0,67201.0,3.68126598]
[1718101062927,1.71528094,67202.0,67201.0,3.68126598]
[1718101063132,1.78981087,67202.0,67201.0,3.68126598]
[1718101063332,2.01005505,67202.0,67201.0,3.68126598]
[1718101063550,2.02405505,67202.0,67201.0,3.68126598]
[1718101064034,2.01005505,67202.0,67201.0,3.68126598]
[1718101064245,1.99705505,67202.0,67201.0,3.68126598]
[1718101064451,2.01105505,67202.0,67201.0,3.68126598]
[1718101064655,1.73539509,67202.0,67201.0,3.82558591]
[1718101064879,1.92489509,67202.0,67201.0,3.82558591]
[1718101065090,1.92225084,67202.0,67201.0,3.82558591]
[1718101065308,1.93625084,67202.0,67201.0,3.68126598]
[1718101066287,1.73275084,67202.0,67201.0,3.68126598]
[1718101066488,1.95025084,67202.0,67201.0,3.68126598]
[1718101066718,1.77344584,67202.0,67201.0,4.31828591]
[1718101066916,1.46467173,67202.0,67201.0,4.64428591]
[1718101067073,1.49267173,67202.0,67201.0,4.64428591]
[1718101067274,1.56729142,67202.0,67201.0,4.49996598]
[1718101067783,1.71609642,67202.0,67201.0,3.68126598]
[1718101067941,1.92225096,67202.0,67201.0,3.68126598]
[1718101068141,1.93625096,67202.0,67201.0,3.68126598]
[1718101068376,1.94925096,67202.0,67201.0,3.68126598]
[1718101068497,1.93525096,67202.0,67201.0,3.68126598]
[1718101069358,1.93525096,67202.0,67201.0,3.82558591]
[1718101069927,1.92225096,67202.0,67201.0,3.82558591]
[1718101070116,1.9512454,67202.0,67201.0,3.82558591]
[1718101070330,1.9612454,67202.0,67201.0,3.68126598]
[1718101070623,1.9472454,67202.0,67201.0,3.68126598]
[1718101070826,1.75029716,67202.0,67201.0,3.68126598]
[1718101071040,1.75827738,67202.0,67201.0,3.68126598]
[1718101071267,1.97577738,67202.0,67201.0,3.68126598]
[1718101071671,1.97086244,67202.0,67201.0,3.68126598]
[1718101072289,1.96975326,67202.0,67201.0,3.68126598]
[1718101072717,1.9683299,67202.0,67201.0,3.68126598]
[1718101073344,1.4683299,67202.0,67201.0,3.68126598]
[1718101073763,1.9683299,67202.0,67201.0,3.68126598]
[1718101073976,1.9683299,67202.0,67201.0,3.82558591]
[1718101076276,1.9543299,67202.0,67201.0,3.82558591]
[1718101076487,1.9543299,67202.0,67201.0,3.68126598]
[1718101076700,1.9683299,67202.0,67201.0,3.68126598]
[1718101077126,1.9543299,67202.0,67201.0,3.68126598]
[1718101077531,1.9683299,67202.0,67201.0,3.68126598]
[1718101079169,1.96049494,67202.0,67201.0,3.68126598]
[1718101079579,1.65172071,67202.0,67201.0,3.68126598]
[1718101079790,1.50291571,67202.0,67201.0,3.82558591]
[1718101079971,1.50291571,67202.0,67201.0,4.61263679]
[1718101080394,1.08541571,67202.0,67201.0,4.46831686]
[1718101080623,1.17816944,67202.0,67201.0,4.46831686]
[1718101080826,0.61216822,67202.0,67201.0,4.46831686]
[1718101081227,0.60519336,67202.0,67201.0,4.46831686]
[1718101081456,0.67171127,67202.0,67201.0,4.46831686]
[1718101081655,0.67171127,67202.0,67201.0,4.61263679]
[1718101082059,0.528,67202.0,67201.0,4.61263679]
[1718101082306,0.60518386,67202.0,67201.0,4.61263679]
[1718101082519,0.57234626,67202.0,67201.0,4.61263679]
[1718101082727,0.528,67202.0,67201.0,4.59608591]
[1718101082933,0.528,67202.0,67201.0,4.45176598]
[1718101082934,0.60518283,67202.0,67201.0,4.45176598]
[1718101083146,1.13456534,67202.0,67201.0,4.45176598]
[1718101083365,1.05289329,67202.0,67201.0,4.45176598]
[1718101083581,1.14457954,67202.0,67201.0,4.45176598]
[1718101083756,1.0056621,67202.0,67201.0,4.45176598]
[1718101084020,0.65072271,67202.0,67201.0,4.59608591]
[1718101084239,0.65072271,67202.0,67201.0,4.61263679]
[1718101084482,0.55437208,67202.0,67201.0,4.61263679]
[1718101084688,0.54735566,67202.0,67201.0,4.61263679]
[1718101084893,0.503,67202.0,67201.0,4.61263679]
[1718101085074,0.503,67202.0,67201.0,4.75695672]
[1718101085294,0.003,67202.0,67201.0,4.76695672]
[1718101085902,0.06655067,67213.0,67212.0,0.01655088]
[1718101086117,0.10933357,67216.0,67213.0,0.83525088]
[1718101086118,0.06655067,67214.0,67213.0,0.83525088]
[1718101086331,0.009416,67217.0,67215.0,0.01655088]
[1718101086540,0.07716933,67216.0,67213.0,0.01625588]
[1718101086754,0.5,67215.0,67207.0,0.3211]
[1718101086975,0.2175,67213.0,67207.0,0.3211]
[1718101087425,0.06653696,67211.0,67207.0,0.3211]
[1718101087634,0.20623703,67210.0,67207.0,0.3211]
[1718101087845,0.077178,67209.0,67207.0,0.3211]
[1718101088289,0.14371496,67209.0,67207.0,0.3211]
[1718101088494,0.077178,67208.0,67207.0,0.3211]
[1718101089116,0.5,67208.0,67207.0,0.3211]
[1718101089376,1.34259543,67208.0,67202.0,0.3276]
[1718101089588,0.06651154,67206.0,67202.0,0.3276]
[1718101089805,0.06651154,67206.0,67201.0,3.68126598]
[1718101089806,0.06651154,67204.0,67201.0,3.68126598]
[1718101090028,0.077178,67203.0,67201.0,3.68126598]
[1718101090243,0.14368954,67203.0,67201.0,3.68126598]
[1718101090456,0.077178,67202.0,67201.0,3.68126598]
[1718101090813,0.20463739,67202.0,67201.0,3.68126598]
[1718101091018,0.62315871,67202.0,67201.0,3.68126598]
[1718101091422,0.77196371,67202.0,67201.0,3.68126598]
[1718101091629,0.68324893,67202.0,67201.0,3.68126598]
[1718101091824,0.69024893,67202.0,67201.0,3.68126598]
[1718101092045,0.69424893,67202.0,67201.0,3.68126598]
[1718101092455,0.80513744,67202.0,67201.0,3.68126598]
[1718101092680,0.65633244,67202.0,67201.0,3.68126598]
[1718101092885,0.63417615,67202.0,67201.0,3.68126598]
[1718101093293,0.49971676,67202.0,67201.0,3.68126598]
[1718101093695,0.50971676,67202.0,67201.0,4.44156598]
[1718101093895,0.45571676,67202.0,67201.0,4.44156598]
[1718101094106,0.36698454,67202.0,67201.0,4.44156598]
[1718101094304,0.43652631,67202.0,67201.0,4.44156598]
[1718101094566,0.43652631,67202.0,67201.0,4.58588591]
[1718101095161,0.43652631,67202.0,67201.0,4.60214179]
[1718101095758,0.34779409,67202.0,67201.0,4.60214179]
[1718101096163,0.43652631,67202.0,67201.0,4.60214179]
[1718101096618,0.42788279,67202.0,67201.0,4.60214179]
[1718101096786,0.43788279,67202.0,67201.0,4.60214179]
[1718101096985,0.34915057,67202.0,67201.0,4.60214179]
[1718101097187,0.42988279,67202.0,67201.0,4.60214179]
[1718101097404,0.42988279,67202.0,67201.0,4.45782186]
[1718101097730,0.42788279,67202.0,67201.0,4.45782186]
[1718101097937,0.00135648,67202.0,67201.0,4.45782186]
[1718101098066,0.01135648,67202.0,67201.0,4.45782186]
[1718101098285,0.018,67202.0,67201.0,4.45782186]
[1718101098628,0.018,67202.0,67201.0,4.60214179]
[1718101098805,0.018,67202.0,67201.0,4.75646172]
[1718101099222,0.01,67202.0,67201.0,4.90526872]
[1718101100286,0.06193889,67213.0,67212.0,0.80665588]
[1718101100617,0.06896612,67213.0,67212.0,0.7904]
[1718101100841,0.06896612,67213.0,67212.0,0.87106559]
[1718101101260,0.0246048,67213.0,67212.0,0.87106559]
[1718101101469,0.09114678,67213.0,67212.0,0.87106559]
[1718101101945,0.16537084,67213.0,67212.0,0.3298]
[1718101102101,0.09876476,67213.0,67207.0,0.7626]
[1718101102255,0.04440074,67209.0,67208.0,0.01625588]
[1718101102476,0.06660123,67210.0,67208.0,0.01625588]
[1718101102873,0.04440332,67209.0,67208.0,0.01625588]
[1718101103083,0.04440332,67209.0,67208.0,0.09414147]
[1718101103281,0.04440332,67210.0,67209.0,0.01625588]
[1718101103686,0.04440332,67210.0,67208.0,0.09414147]
[1718101104455,0.00860319,67209.0,67208.0,0.07788559]
[1718101104658,0.00860319,67209.0,67208.0,0.09414147]
[1718101104864,0.00560319,67209.0,67208.0,0.09414147]
[1718101105070,0.00560319,67209.0,67208.0,0.2384614]
[1718101105978,0.01894152,67213.0,67208.0,0.2384614]
[1718101105979,0.01894152,67213.0,67211.0,0.00606248]
[1718101106185,0.01757757,67213.0,67212.0,0.24078084]
[1718101106398,0.4975,67214.0,67212.0,0.24078084]
[1718101106601,0.4975,67214.0,67213.0,0.01596088]
[1718101106811,0.04440332,67215.0,67214.0,0.01596088]
[1718101107703,0.11334232,67217.0,67216.0,0.01596088]
[1718101107923,0.009416,67217.0,67216.0,0.01596088]
[1718101109034,0.015416,67217.0,67216.0,0.01596088]
[1718101109466,0.015416,67217.0,67216.0,1.11625481]
[1718101111122,0.009416,67217.0,67216.0,1.11625481]